[Event "Berliner Meisterschaft 2023"]
[Site "Berlin"]
[Date "2023.04.10"]
[Round "3.1"]
[White "Georg, Tscheuschner"]
[Black "Lagunow, Raphael"]
[Result "0-1"]
[TimeControl "90 minutes / 40 moves + 30 minutes + 30 seconds"]
[BlackTitle "IM"]
[WhiteFideId "12935549"]
[BlackFideId "246552644"]
[WhiteElo "2185"]
[BlackElo "2410"]

1. Nf3 {[%clk 01:30:57]} {[%emt 00:00:02]} d5 {[%clk 01:21:08]} {[%emt
00:09:53]} 2. e3 {[%clk 01:31:20]} {[%emt 00:00:07]} Nf6 {[%clk 01:21:29]}
{[%emt 00:00:09]} 3. c4 {[%clk 01:31:40]} {[%emt 00:00:10]} e6 {[%clk
01:21:53]} {[%emt 00:00:05]} 4. Nc3 {[%clk 01:32:05]} {[%emt 00:00:06]} Bd6
{[%clk 01:22:17]} {[%emt 00:00:07]} 5. b3 {[%clk 01:31:54]} {[%emt 00:00:41]}
O-O {[%clk 01:21:46]} {[%emt 00:01:00]} 6. Bb2 {[%clk 01:32:05]} {[%emt
00:00:19]} Re8 {[%clk 01:21:34]} {[%emt 00:00:42]} 7. Be2 {[%clk 01:05:13]}
{[%emt 00:27:22]} Nbd7 {[%clk 01:19:26]} {[%emt 00:02:39]} 8. O-O {[%clk
01:01:09]} {[%emt 00:04:33]} a6 {[%clk 01:18:27]} {[%emt 00:01:29]} 9. d4
{[%clk 01:00:16]} {[%emt 00:01:23]} b6 {[%clk 01:18:12]} {[%emt 00:00:45]} 10.
Qc2 {[%clk 00:59:11]} {[%emt 00:01:35]} Bb7 {[%clk 01:16:26]} {[%emt 00:02:16]}
11. Rad1 {[%clk 00:55:18]} {[%emt 00:04:23]} Qe7 {[%clk 01:05:12]} {[%emt
00:11:43]} 12. cxd5 {[%clk 00:38:01]} {[%emt 00:17:47]} exd5 {[%clk 01:05:32]}
{[%emt 00:00:11]} 13. Nh4 {[%clk 00:37:50]} {[%emt 00:00:40]} g6 {[%clk
01:01:49]} {[%emt 00:04:12]} 14. Nf3 {[%clk 00:38:15]} {[%emt 00:00:05]} Rac8
{[%clk 00:37:11]} {[%emt 00:25:08]} 15. Bd3 {[%clk 00:37:46]} {[%emt 00:00:59]}
Ne4 {[%clk 00:33:56]} {[%emt 00:03:45]} 16. Ne2 {[%clk 00:34:30]} {[%emt
00:03:46]} Qf6 {[%clk 00:22:52]} {[%emt 00:11:33]} 17. Nf4 {[%clk 00:24:24]}
{[%emt 00:10:37]} g5 {[%clk 00:15:55]} {[%emt 00:07:28]} 18. Nh5 {[%clk
00:15:18]} {[%emt 00:09:36]} Qg6 {[%clk 00:12:22]} {[%emt 00:04:03]} 19. Ng3
{[%clk 00:14:15]} {[%emt 00:01:32]} f5 {[%clk 00:12:15]} {[%emt 00:00:37]} 20.
Ne5 {[%clk 00:13:15]} {[%emt 00:01:30]} Nxe5 {[%clk 00:10:24]} {[%emt
00:02:22]} 21. dxe5 {[%clk 00:13:32]} {[%emt 00:00:13]} Bxe5 {[%clk 00:10:49]}
{[%emt 00:00:05]} 22. Bxe5 {[%clk 00:04:08]} {[%emt 00:09:54]} Rxe5 {[%clk
00:11:14]} {[%emt 00:00:04]} 23. Nxf5 {[%clk 00:04:16]} {[%emt 00:00:22]} Rxf5
{[%clk 00:07:09]} {[%emt 00:04:35]} 24. f3 {[%clk 00:04:42]} {[%emt 00:00:04]}
b5 {[%clk 00:07:13]} {[%emt 00:00:26]} 25. a4 {[%clk 00:01:08]} {[%emt
00:04:04]} Qb6 {[%clk 00:02:33]} {[%emt 00:05:10]} 26. fxe4 {[%clk 00:01:36]}
{[%emt 00:00:02]} Qxe3+ {[%clk 00:02:57]} {[%emt 00:00:06]} 27. Kh1 {[%clk
00:02:02]} {[%emt 00:00:03]} Rxf1+ {[%clk 00:03:00]} {[%emt 00:00:27]} 28. Rxf1
{[%clk 00:02:31]} dxe4 {[%clk 00:02:37]} {[%emt 00:00:54]} 29. Bc4+ {[%clk
00:02:51]} {[%emt 00:00:11]} bxc4 {[%clk 00:02:45]} {[%emt 00:00:21]} 30. Qxc4+
{[%clk 00:03:18]} {[%emt 00:00:03]} Kh8 {[%clk 00:02:59]} {[%emt 00:00:16]} 31.
Qb4 {[%clk 00:03:45]} {[%emt 00:00:03]} Bd5 {[%clk 00:02:11]} {[%emt 00:01:19]}
32. Rf8+ {[%emt 00:00:21]} Bg8 {[%clk 00:02:32]} 33. Rf1 {[%clk 00:02:46]}
{[%emt 00:01:45]} Rd8 {[%clk 00:01:42]} {[%emt 00:01:21]} 34. h4 {[%clk
00:02:40]} {[%emt 00:00:36]} Qd4 {[%clk 00:01:46]} {[%emt 00:00:26]} 35. Qe7
{[%clk 00:03:02]} {[%emt 00:00:09]} gxh4 {[%clk 00:01:46]} {[%emt 00:00:30]} 36.
Rf4 {[%clk 00:02:22]} {[%emt 00:01:10]} h3 {[%clk 00:01:57]} {[%emt 00:00:19]}
37. gxh3 {[%clk 00:02:16]} {[%emt 00:00:36]} Qa1+ {[%clk 00:01:46]} {[%emt
00:00:40]} 38. Kg2 {[%clk 00:02:36]} {[%emt 00:00:10]} Qg7+ {[%clk 00:00:42]}
{[%emt 00:01:35]} 0-1

[Event "Berliner Meisterschaft 2023"]
[Site "Berlin"]
[Date "2023.04.10"]
[Round "3.2"]
[White "Lagunow, Alexander"]
[Black "Richter, Michael"]
[Result "1/2-1/2"]
[TimeControl "90 minutes / 40 moves + 30 minutes + 30 seconds"]
[WhiteTitle "IM"]
[BlackTitle "GM"]
[WhiteFideId "4616049"]
[BlackFideId "4618920"]
[WhiteElo "2341"]
[BlackElo "2465"]

1. c4 {[%clk 01:30:54]} {[%emt 00:00:05]} e6 {[%clk 01:20:39]} {[%emt
00:10:21]} 2. Nc3 {[%clk 01:31:15]} {[%emt 00:00:10]} d5 {[%clk 01:20:50]}
{[%emt 00:00:19]} 3. d4 {[%clk 01:31:34]} {[%emt 00:00:11]} a6 {[%clk
01:16:35]} {[%emt 00:04:45]} 4. c5 {[%clk 01:21:41]} {[%emt 00:10:23]} Nc6
{[%clk 01:15:50]} {[%emt 00:01:14]} 5. Nf3 {[%clk 01:21:42]} {[%emt 00:00:30]}
Nge7 {[%clk 01:13:59]} {[%emt 00:02:20]} 6. Bf4 {[%clk 01:20:02]} {[%emt
00:02:11]} Ng6 {[%clk 01:10:55]} {[%emt 00:03:34]} 7. Bg3 {[%clk 01:20:23]}
{[%emt 00:00:09]} e5 {[%clk 01:02:11]} {[%emt 00:09:14]} 8. dxe5 {[%clk
01:01:33]} {[%emt 00:19:21]} d4 {[%clk 01:00:49]} {[%emt 00:01:51]} 9. Na4
{[%clk 01:01:15]} {[%emt 00:00:48]} b5 {[%clk 00:57:22]} {[%emt 00:03:57]} 10.
cxb6 {[%clk 01:01:05]} {[%emt 00:00:40]} Bb4+ {[%clk 00:55:36]} {[%emt
00:02:16]} 11. Nd2 {[%clk 01:01:32]} {[%emt 00:00:03]} Ngxe5 {[%clk 00:49:32]}
{[%emt 00:06:33]} 12. a3 {[%clk 00:51:12]} {[%emt 00:10:51]} Qe7 {[%clk
00:47:52]} {[%emt 00:02:10]} 13. e3 {[%clk 00:49:36]} {[%emt 00:02:07]} dxe3
{[%clk 00:45:43]} {[%emt 00:02:38]} 14. fxe3 {[%clk 00:50:01]} {[%emt
00:00:04]} Bg4 {[%clk 00:44:09]} {[%emt 00:02:04]} 15. Be2 {[%clk 00:45:21]}
{[%emt 00:05:10]} Bxe2 {[%clk 00:21:06]} {[%emt 00:23:33]} 16. Kxe2 {[%clk
00:39:02]} {[%emt 00:06:49]} Bxd2 {[%clk 00:19:50]} {[%emt 00:01:46]} 17. Qxd2
{[%clk 00:38:37]} {[%emt 00:00:56]} Rd8 {[%clk 00:19:09]} {[%emt 00:01:10]} 18.
Qc3 {[%clk 00:35:07]} {[%emt 00:04:00]} cxb6 {[%clk 00:15:55]} {[%emt
00:03:45]} 19. Rhd1 {[%clk 00:33:32]} {[%emt 00:02:06]} O-O {[%clk 00:13:45]}
{[%emt 00:02:39]} 20. Rxd8 {[%clk 00:33:17]} {[%emt 00:00:46]} Rxd8 {[%clk
00:14:08]} {[%emt 00:00:06]} 21. Rd1 {[%clk 00:32:46]} {[%emt 00:01:01]} Rxd1
{[%clk 00:07:17]} {[%emt 00:07:21]} 22. Kxd1 {[%clk 00:33:10]} {[%emt
00:00:05]} b5 {[%clk 00:06:46]} {[%emt 00:01:01]} 23. Nc5 {[%clk 00:33:08]}
{[%emt 00:00:33]} Nc4 {[%clk 00:05:30]} {[%emt 00:01:45]} 24. Nxa6 {[%clk
00:30:46]} {[%emt 00:02:52]} h5 {[%clk 00:05:57]} {[%emt 00:00:02]} 25. Bf4
{[%clk 00:25:22]} {[%emt 00:05:55]} g5 {[%clk 00:06:07]} {[%emt 00:00:20]} 26.
b3 {[%clk 00:25:46]} {[%emt 00:00:07]} Qxa3 {[%clk 00:05:26]} {[%emt 00:01:10]}
27. Bxg5 {[%clk 00:25:33]} {[%emt 00:00:42]} N6e5 {[%clk 00:04:35]} {[%emt
00:01:20]} 28. Nb4 {[%clk 00:23:50]} {[%emt 00:02:13]} Ng4 {[%clk 00:03:04]}
{[%emt 00:02:02]} 29. Nd5 {[%clk 00:23:55]} {[%emt 00:00:26]} Nf2+ {[%clk
00:01:58]} {[%emt 00:01:35]} 30. Ke1 {[%clk 00:19:03]} {[%emt 00:05:22]} Ne4
{[%clk 00:02:20]} {[%emt 00:00:08]} 31. Nf6+ {[%clk 00:18:53]} {[%emt
00:00:40]} Nxf6 {[%clk 00:02:45]} {[%emt 00:00:05]} 32. Bxf6 {[%clk 00:19:20]}
{[%emt 00:00:03]} Nd6 {[%clk 00:02:55]} {[%emt 00:00:20]} 33. Be7 {[%clk
00:17:59]} {[%emt 00:01:52]} Qa6 {[%clk 00:02:40]} {[%emt 00:00:45]} 34. Qf6
{[%clk 00:18:22]} {[%emt 00:00:07]} Qa5+ {[%clk 00:02:48]} {[%emt 00:00:21]} 35.
Kd1 {[%clk 00:12:57]} {[%emt 00:05:55]} Ne4 {[%clk 00:02:58]} {[%emt 00:00:20]}
36. Qd4 {[%clk 00:13:24]} {[%emt 00:00:03]} Qa8 {[%clk 00:01:45]} {[%emt
00:01:43]} 37. Kc2 {[%clk 00:05:58]} {[%emt 00:07:57]} Qc6+ {[%clk 00:01:58]}
{[%emt 00:00:17]} 38. Kb2 {[%clk 00:06:23]} {[%emt 00:00:05]} Qe6 {[%clk
00:01:05]} {[%emt 00:01:23]} 39. Bb4 {[%clk 00:05:59]} {[%emt 00:00:54]} Qg4
{[%clk 00:00:59]} {[%emt 00:00:36]} 40. g3 {[%clk 00:05:12]} {[%emt 00:01:17]}
Qf5 {[%clk 00:00:38]} {[%emt 00:00:51]} 41. Ka3 {[%clk 00:03:58]} {[%emt
00:01:45]} Kh7 {[%clk 00:30:14]} {[%emt 00:00:53]} 42. Bc3 {[%clk 00:31:23]}
{[%emt 00:03:05]} f6 {[%clk 00:30:38]} {[%emt 00:00:05]} 43. Kb4 {[%clk
00:30:24]} {[%emt 00:01:30]} Kg6 {[%clk 00:30:58]} {[%emt 00:00:10]} 44. Ka5
{[%clk 00:27:13]} {[%emt 00:03:41]} Nc5 {[%clk 00:26:43]} {[%emt 00:04:44]} 45.
Kb4 {[%clk 00:19:23]} {[%emt 00:08:21]} Ne4 {[%clk 00:27:07]} {[%emt 00:00:06]}
46. Ka5 {[%clk 00:19:40]} {[%emt 00:00:14]} 1/2-1/2

[Event "Berliner Meisterschaft 2023"]
[Site "Berlin"]
[Date "2023.04.10"]
[Round "3.3"]
[White "Glek, Igor"]
[Black "Foerster, Jonas"]
[Result "1-0"]
[TimeControl "90 minutes / 40 moves + 30 minutes + 30 seconds"]
[WhiteTitle "GM"]
[WhiteFideId "4100484"]
[BlackFideId "4640098"]
[WhiteElo "2443"]
[BlackElo "2295"]

1. e4 {[%clk 01:29:15]} {[%emt 00:01:44]} g6 {[%clk 01:30:43]} {[%emt
00:00:18]} 2. d4 {[%clk 01:23:05]} {[%emt 00:06:40]} Bg7 {[%clk 01:30:04]}
{[%emt 00:01:09]} 3. Nc3 {[%clk 01:22:51]} {[%emt 00:00:44]} d6 {[%clk
01:29:30]} {[%emt 00:01:04]} 4. Be3 {[%clk 01:19:35]} {[%emt 00:03:45]} a6
{[%clk 01:27:42]} {[%emt 00:02:19]} 5. g4 {[%clk 01:11:41]} {[%emt 00:08:23]}
c6 {[%clk 01:05:34]} {[%emt 00:22:39]} 6. Bg2 {[%clk 01:01:29]} {[%emt
00:10:41]} Qb6 {[%clk 00:51:25]} {[%emt 00:14:39]} 7. Rb1 {[%clk 01:01:43]}
{[%emt 00:00:16]} Nf6 {[%clk 00:51:28]} {[%emt 00:00:27]} 8. h3 {[%clk
01:02:01]} {[%emt 00:00:11]} O-O {[%clk 00:51:21]} {[%emt 00:00:37]} 9. Nge2
{[%clk 01:01:52]} {[%emt 00:00:38]} Qc7 {[%clk 00:48:12]} {[%emt 00:03:40]} 10.
Ng3 {[%clk 00:56:21]} {[%emt 00:06:00]} b5 {[%clk 00:42:40]} {[%emt 00:06:03]}
11. f4 {[%clk 00:50:42]} {[%emt 00:06:09]} Bb7 {[%clk 00:36:37]} {[%emt
00:06:34]} 12. O-O {[%clk 00:48:34]} {[%emt 00:02:37]} Nfd7 {[%clk 00:27:33]}
{[%emt 00:09:35]} 13. Qe1 {[%clk 00:42:36]} {[%emt 00:06:28]} c5 {[%clk
00:25:06]} {[%emt 00:02:57]} 14. d5 {[%clk 00:40:28]} {[%emt 00:02:37]} Nb6
{[%clk 00:25:02]} {[%emt 00:00:34]} 15. b3 {[%clk 00:40:52]} {[%emt 00:00:07]}
N8d7 {[%clk 00:24:45]} {[%emt 00:00:47]} 16. Nce2 {[%clk 00:39:41]} {[%emt
00:01:40]} a5 {[%clk 00:21:12]} {[%emt 00:04:03]} 17. Rd1 {[%clk 00:33:10]}
{[%emt 00:07:01]} a4 {[%clk 00:19:39]} {[%emt 00:02:04]} 18. Qf2 {[%clk
00:32:34]} {[%emt 00:01:06]} axb3 {[%clk 00:16:09]} {[%emt 00:04:01]} 19. axb3
{[%clk 00:33:00]} {[%emt 00:00:04]} Ra2 {[%clk 00:15:35]} {[%emt 00:01:04]} 20.
Rd2 {[%clk 00:25:51]} {[%emt 00:07:38]} Rfa8 {[%clk 00:11:09]} {[%emt
00:04:57]} 21. g5 {[%clk 00:25:50]} {[%emt 00:00:30]} b4 {[%clk 00:10:31]}
{[%emt 00:01:09]} 22. e5 {[%clk 00:25:56]} {[%emt 00:00:24]} c4 {[%clk
00:08:37]} {[%emt 00:02:24]} 23. e6 {[%clk 00:18:48]} {[%emt 00:07:38]} c3
{[%clk 00:07:31]} {[%emt 00:01:36]} 24. exf7+ {[%clk 00:14:48]} {[%emt
00:04:30]} Kh8 {[%clk 00:06:15]} {[%emt 00:01:47]} 25. Rdd1 {[%clk 00:11:49]}
{[%emt 00:03:28]} Rxc2 {[%clk 00:06:35]} {[%emt 00:00:10]} 26. Bd4 {[%clk
00:12:15]} {[%emt 00:00:04]} Rd2 {[%clk 00:06:14]} {[%emt 00:00:52]} 27. Bxg7+
{[%clk 00:05:43]} {[%emt 00:07:01]} Kxg7 {[%clk 00:06:42]} {[%emt 00:00:02]} 28.
Rxd2 {[%clk 00:06:03]} {[%emt 00:00:09]} cxd2 {[%clk 00:07:08]} {[%emt
00:00:05]} 29. Qd4+ {[%clk 00:04:10]} {[%emt 00:02:23]} Kxf7 {[%clk 00:07:29]}
{[%emt 00:00:09]} 30. Qxd2 {[%clk 00:02:39]} {[%emt 00:02:02]} Kg8 {[%clk
00:05:09]} {[%emt 00:02:50]} 31. Rc1 {[%clk 00:02:19]} {[%emt 00:00:49]} Nc5
{[%clk 00:04:39]} {[%emt 00:01:01]} 32. Qxb4 {[%clk 00:01:39]} {[%emt
00:01:10]} Nbd7 {[%clk 00:01:50]} {[%emt 00:03:19]} 33. Nd4 {[%clk 00:01:10]}
{[%emt 00:01:00]} Qb6 {[%clk 00:01:19]} {[%emt 00:01:01]} 34. Qxb6 {[%clk
00:01:19]} {[%emt 00:00:20]} Nxb6 {[%clk 00:01:46]} {[%emt 00:00:03]} 35. Nc6
{[%clk 00:01:28]} {[%emt 00:00:22]} Nxb3 {[%clk 00:01:19]} {[%emt 00:00:57]} 36.
Nxe7+ {[%clk 00:01:32]} {[%emt 00:00:26]} Kf8 {[%clk 00:01:23]} {[%emt
00:00:26]} 37. Rc7 {[%clk 00:01:58]} {[%emt 00:00:03]} Nc5 {[%clk 00:01:14]}
{[%emt 00:00:39]} 38. Ne4 {[%clk 00:01:08]} {[%emt 00:01:20]} Ra1+ {[%clk
00:01:12]} {[%emt 00:00:33]} 39. Kh2 {[%clk 00:01:35]} {[%emt 00:00:03]} Nxd5
{[%clk 00:00:56]} {[%emt 00:00:46]} 40. Nxd5 {[%clk 00:01:34]} {[%emt
00:00:31]} Bxd5 {[%clk 00:01:00]} {[%emt 00:00:26]} 41. Nxc5 {[%emt 00:02:30]}
1-0

[Event "Berliner Meisterschaft 2023"]
[Site "Berlin"]
[Date "2023.04.10"]
[Round "3.4"]
[White "Acikel, Mert"]
[Black "Baskin, Robert"]
[Result "0-1"]
[TimeControl "90 minutes / 40 moves + 30 minutes + 30 seconds"]
[WhiteTitle "FM"]
[BlackTitle "IM"]
[WhiteFideId "12956465"]
[BlackFideId "24662402"]
[WhiteElo "2240"]
[BlackElo "2442"]

1. e4 {[%clk 01:30:55]} {[%emt 00:00:04]} c5 {[%clk 01:21:29]} {[%emt
00:09:32]} 2. Nf3 {[%clk 01:30:59]} {[%emt 00:00:26]} d6 {[%clk 01:21:45]}
{[%emt 00:00:11]} 3. Bb5+ {[%clk 01:31:11]} {[%emt 00:00:21]} Nd7 {[%clk
01:21:59]} {[%emt 00:00:16]} 4. Ba4 {[%clk 01:31:16]} {[%emt 00:00:25]} Ngf6
{[%clk 01:22:07]} {[%emt 00:00:21]} 5. O-O {[%clk 01:31:24]} {[%emt 00:00:23]}
e6 {[%clk 01:22:21]} {[%emt 00:00:16]} 6. Re1 {[%clk 01:31:28]} {[%emt
00:00:26]} a6 {[%clk 01:22:43]} {[%emt 00:00:09]} 7. c4 {[%clk 01:31:34]}
{[%emt 00:00:24]} Be7 {[%clk 01:20:20]} {[%emt 00:02:52]} 8. d4 {[%clk
01:31:52]} {[%emt 00:00:13]} cxd4 {[%clk 01:20:32]} {[%emt 00:00:18]} 9. Nxd4
{[%clk 01:31:44]} {[%emt 00:00:39]} Qc7 {[%clk 01:20:46]} {[%emt 00:00:15]} 10.
Qe2 {[%clk 01:31:24]} {[%emt 00:00:50]} O-O {[%clk 01:20:50]} {[%emt 00:00:26]}
11. Bc2 {[%clk 01:30:36]} {[%emt 00:01:19]} Ne5 {[%clk 01:20:04]} {[%emt
00:01:16]} 12. b3 {[%clk 01:30:22]} {[%emt 00:00:44]} d5 {[%clk 01:19:12]}
{[%emt 00:01:22]} 13. exd5 {[%clk 01:20:45]} {[%emt 00:10:07]} Neg4 {[%clk
01:09:34]} {[%emt 00:10:08]} 14. Nf3 {[%clk 01:10:25]} {[%emt 00:10:50]} Bc5
{[%clk 01:09:29]} {[%emt 00:00:35]} 15. Rf1 {[%clk 01:03:59]} {[%emt 00:06:56]}
exd5 {[%clk 01:05:19]} {[%emt 00:04:40]} 16. Bb2 {[%clk 00:43:14]} {[%emt
00:21:16]} Re8 {[%clk 01:02:39]} {[%emt 00:03:09]} 17. Qd2 {[%clk 00:43:12]}
{[%emt 00:00:32]} Ne4 {[%clk 00:50:01]} {[%emt 00:13:07]} 18. Qxd5 {[%clk
00:30:23]} {[%emt 00:13:19]} Ngxf2 {[%clk 00:48:17]} {[%emt 00:02:14]} 19. Bxe4
{[%emt 00:06:43]} Nxe4+ {[%clk 00:42:19]} {[%emt 00:06:24]} 20. Bd4 {[%clk
00:18:36]} {[%emt 00:06:09]} Bg4 {[%clk 00:41:12]} {[%emt 00:01:37]} 0-1

[Event "Berliner Meisterschaft 2023"]
[Site "Berlin"]
[Date "2023.04.10"]
[Round "3.5"]
[White "Schmidek, Emil"]
[Black "Hesse, Henrik"]
[Result "1/2-1/2"]
[TimeControl "90 minutes / 40 moves + 30 minutes + 30 seconds"]
[WhiteTitle "IM"]
[WhiteFideId "12908150"]
[BlackFideId "12956465"]
[WhiteElo "2433"]
[BlackElo "2197"]

1. d4 {[%clk 01:30:57]} {[%emt 00:00:02]} Nf6 {[%clk 01:30:53]} {[%emt
00:00:07]} 2. c4 {[%clk 01:31:22]} {[%emt 00:00:05]} g6 {[%clk 01:30:19]}
{[%emt 00:01:04]} 3. Nc3 {[%clk 01:31:47]} {[%emt 00:00:06]} d5 {[%clk
01:30:45]} {[%emt 00:00:04]} 4. cxd5 {[%clk 01:32:10]} {[%emt 00:00:07]} Nxd5
{[%clk 01:31:09]} {[%emt 00:00:06]} 5. e4 {[%clk 01:32:34]} {[%emt 00:00:06]}
Nxc3 {[%clk 01:31:35]} {[%emt 00:00:05]} 6. bxc3 {[%clk 01:32:58]} {[%emt
00:00:06]} Bg7 {[%clk 01:31:59]} {[%emt 00:00:05]} 7. Nf3 {[%clk 01:33:02]}
{[%emt 00:00:26]} c5 {[%clk 01:32:16]} {[%emt 00:00:13]} 8. Rb1 {[%clk
01:33:17]} {[%emt 00:00:16]} O-O {[%clk 01:32:35]} {[%emt 00:00:11]} 9. Be2
{[%clk 01:33:28]} {[%emt 00:00:19]} cxd4 {[%clk 01:32:19]} {[%emt 00:00:45]} 10.
cxd4 {[%clk 01:33:49]} {[%emt 00:00:10]} Qa5+ {[%clk 01:32:32]} {[%emt
00:00:16]} 11. Qd2 {[%clk 01:33:10]} {[%emt 00:01:10]} Qxd2+ {[%clk 01:32:42]}
{[%emt 00:00:20]} 12. Bxd2 {[%clk 01:33:37]} {[%emt 00:00:03]} b6 {[%clk
01:33:02]} {[%emt 00:00:09]} 13. O-O {[%clk 01:34:00]} {[%emt 00:00:08]} Bb7
{[%clk 01:31:12]} {[%emt 00:02:20]} 14. d5 {[%clk 01:34:21]} {[%emt 00:00:09]}
Ba6 {[%clk 01:31:29]} {[%emt 00:00:13]} 15. Rfe1 {[%clk 01:34:40]} {[%emt
00:00:10]} Bxe2 {[%clk 01:31:42]} {[%emt 00:00:17]} 16. Rxe2 {[%clk 01:35:09]}
{[%emt 00:00:02]} Na6 {[%clk 01:30:01]} {[%emt 00:02:11]} 17. Bg5 {[%clk
01:14:03]} {[%emt 00:21:35]} Rfe8 {[%clk 01:12:33]} {[%emt 00:17:59]} 18. Rd1
{[%clk 01:03:47]} {[%emt 00:10:46]} Nc5 {[%clk 01:05:24]} {[%emt 00:07:38]} 19.
Nd4 {[%clk 00:52:54]} {[%emt 00:11:23]} Bxd4 {[%clk 00:42:06]} {[%emt
00:23:48]} 20. Rxd4 {[%clk 00:53:14]} {[%emt 00:00:11]} Rad8 {[%clk 00:42:16]}
{[%emt 00:00:19]} 21. Red2 {[%clk 00:37:58]} {[%emt 00:15:46]} f6 {[%clk
00:39:28]} {[%emt 00:03:18]} 22. Be3 {[%clk 00:37:55]} {[%emt 00:00:32]} e6
{[%clk 00:35:59]} {[%emt 00:03:59]} 23. Kf1 {[%clk 00:12:40]} {[%emt 00:25:45]}
exd5 {[%clk 00:34:18]} {[%emt 00:02:12]} 24. exd5 {[%clk 00:13:08]} {[%emt
00:00:02]} Re5 {[%clk 00:26:02]} {[%emt 00:08:45]} 25. Bf4 {[%clk 00:12:30]}
{[%emt 00:01:07]} Re4 {[%clk 00:19:30]} {[%emt 00:07:02]} 26. Rxe4 {[%clk
00:07:57]} {[%emt 00:05:03]} Nxe4 {[%clk 00:19:56]} {[%emt 00:00:05]} 27. Rd3
{[%clk 00:08:19]} {[%emt 00:00:07]} f5 {[%clk 00:15:11]} {[%emt 00:05:14]} 28.
f3 {[%clk 00:06:03]} {[%emt 00:02:47]} Nf6 {[%clk 00:14:51]} {[%emt 00:00:50]}
29. d6 {[%clk 00:06:21]} {[%emt 00:00:11]} Kf7 {[%clk 00:12:31]} {[%emt
00:02:51]} 30. h4 {[%clk 00:03:53]} {[%emt 00:02:58]} Rd7 {[%clk 00:09:10]}
{[%emt 00:03:51]} 31. Kf2 {[%clk 00:03:27]} {[%emt 00:00:57]} Ne8 {[%clk
00:06:17]} {[%emt 00:03:22]} 32. Kg3 {[%clk 00:02:10]} {[%emt 00:01:47]} Ke6
{[%clk 00:03:51]} {[%emt 00:02:55]} 33. Re3+ {[%clk 00:02:25]} {[%emt
00:00:16]} Kf7 {[%clk 00:04:11]} {[%emt 00:00:10]} 34. Rd3 {[%clk 00:01:54]}
{[%emt 00:01:01]} Ke6 {[%clk 00:03:35]} {[%emt 00:01:05]} 35. Re3+ {[%clk
00:01:29]} {[%emt 00:00:55]} Kf7 {[%clk 00:03:58]} {[%emt 00:00:07]} 36. Ra3
{[%clk 00:01:22]} {[%emt 00:00:38]} Ke6 {[%clk 00:04:00]} {[%emt 00:00:27]} 37.
Re3+ {[%clk 00:01:19]} {[%emt 00:00:32]} 1/2-1/2